bitfinex-derivatives/quotes_SOLF0:USTF0_20240910
["timestamp","ask_amount","ask_price","bid_price","bid_amount"]
[1725976128819,7.495,133.98,133.91,22.96]
[1725976129117,7.495,133.98,133.93,3.7329]
[1725976129313,7.495,133.98,133.89,22.96]
[1725976130224,30.455,133.98,133.87,22.96]
[1725976130523,22.96,133.96,133.85,23.0569]
[1725976130723,7.495,133.95,133.85,22.96]
[1725976130912,9.7476,133.95,133.85,22.96]
[1725976131116,11.2283,133.92,133.85,22.96]
[1725976131316,7.495,133.92,133.85,22.96]
[1725976131517,7.495,133.92,133.9,3.7337]
[1725976132020,7.495,133.92,133.89,3.7341]
[1725976132422,7.495,133.92,133.87,22.96]
[1725976132617,11.2279,133.94,133.9,3.7338]
[1725976132822,7.495,133.94,133.87,22.96]
[1725976133128,7.495,133.92,133.89,3.734]
[1725976133332,7.495,133.92,133.87,22.96]
[1725976133627,11.2285,133.92,133.88,3.7343]
[1725976134022,11.2285,133.92,133.85,22.96]
[1725976135029,7.495,133.92,133.85,22.96]
[1725976135528,7.495,133.92,133.9,3.7338]
[1725976136124,7.495,133.92,133.91,3.7336]
[1725976137133,27.0867,133.99,133.91,3.7334]
[1725976137134,7.473,133.98,133.91,3.7334]
[1725976137330,4.1267,133.99,133.93,22.96]
[1725976138031,4.1267,133.99,133.91,22.96]
[1725976138232,11.5997,133.99,133.91,22.96]
[1725976138434,3.7325,133.95,133.89,22.96]
[1725976138732,11.5997,133.99,133.89,22.96]
[1725976138933,3.7326,133.95,133.89,22.96]
[1725976139134,11.5997,133.99,133.89,22.96]
[1725976139337,3.7329,133.94,133.9,3.7337]
[1725976139526,3.7329,133.94,133.87,22.96]
[1725976140231,3.7329,133.94,133.91,3.7334]
[1725976140435,3.7325,133.96,133.87,22.96]
[1725976140626,30.433,133.98,133.91,3.7334]
[1725976140939,3.7338,133.91,133.85,22.96]
[1725976141137,7.473,133.93,133.83,22.96]
[1725976141434,22.96,133.94,133.73,247.96]
[1725976141435,34.6437,133.92,133.8,22.96]
[1725976141637,3.7344,133.89,133.81,3.66948804]
[1725976142033,3.7349,133.87,133.8,22.96]
[1725976142433,3.7349,133.87,133.84,3.7356]
[1725976142635,34.6437,133.92,133.84,3.7356]
[1725976143033,3.7344,133.89,133.85,3.7353]
[1725976144027,34.6437,133.92,133.84,3.7354]
[1725976144434,3.7344,133.89,133.85,3.7353]
[1725976144634,34.6437,133.92,133.8,26.73559012]
[1725976145029,3.734,133.9,133.86,3.735]
[1725976145232,34.6437,133.92,133.8,26.73559012]
[1725976145543,3.734,133.9,133.86,3.7348]
[1725976145733,3.734,133.9,133.81,0.0989]
[1725976145938,34.6437,133.92,133.81,0.0989]
[1725976146239,11.2068,133.91,133.87,3.7345]
[1725976146432,7.473,133.91,133.83,22.96]
[1725976146637,22.96,133.9,133.8,26.73559012]
[1725976147236,3.7352,133.86,133.82,3.736]
[1725976147443,22.96,133.9,133.8,26.73559012]
[1725976147644,7.473,133.91,133.8,26.73559012]
[1725976148140,14.35,133.89,133.79,14.35]
[1725976148438,3.7352,133.86,133.82,3.7359]
[1725976148645,3.7352,133.86,133.79,18.13298116]
[1725976148830,3.7346,133.88,133.84,3.7354]
[1725976149234,21.823,133.91,133.81,14.35]
[1725976150630,21.823,133.91,133.83,3.7357]
[1725976150838,21.823,133.91,133.81,14.35]
[1725976151341,3.7347,133.88,133.81,14.35]
[1725976151533,21.823,133.91,133.81,14.35]
[1725976151737,7.473,133.91,133.83,14.35]
[1725976151940,7.473,133.91,133.84,14.35]
[1725976152240,3.7339,133.9,133.86,3.7348]
[1725976152446,7.473,133.91,133.84,14.35]
[1725976153942,7.473,133.91,133.88,3.7343]
[1725976154136,7.473,133.91,133.84,14.35]
[1725976154337,7.473,133.91,133.82,14.35]
[1725976154742,3.7343,133.89,133.82,14.35]
[1725976155242,3.734,133.9,133.86,3.7348]
[1725976155439,7.473,133.91,133.82,14.35]
[1725976156444,3.7339,133.9,133.87,3.7346]
[1725976156652,7.473,133.91,133.87,3.7346]
[1725976156949,11.2068,133.91,133.87,3.7346]
[1725976157445,7.473,133.91,133.87,3.7346]
[1725976157842,7.473,133.91,133.84,14.35]
[1725976158251,7.473,133.91,133.88,3.7343]
[1725976158748,7.473,133.91,133.84,14.35]
[1725976159749,2.1776,133.94,133.87,14.35]
[1725976159750,7.473,133.93,133.87,14.35]
[1725976160252,7.473,133.92,133.84,14.35]
[1725976160547,11.726,133.92,133.84,14.35]
[1725976161142,3.734,133.9,133.87,3.7347]
[1725976161348,11.726,133.92,133.87,3.7347]
[1725976161749,11.2068,133.91,133.87,3.7347]
[1725976161946,7.473,133.91,133.82,14.35]
[1725976162348,3.734,133.9,133.82,14.35]
[1725976162641,7.473,133.91,133.87,3.7345]
[1725976162850,3.7341,133.9,133.82,14.35]
[1725976163250,3.7341,133.9,133.86,3.735]
[1725976163753,11.2067,133.91,133.82,14.35]
[1725976164354,11.2067,133.91,133.87,3.7346]
[1725976164755,11.2067,133.91,133.82,14.35]
[1725976164952,3.734,133.9,133.86,3.7347]
[1725976165158,7.473,133.91,133.82,14.35]
[1725976165556,3.7339,133.9,133.86,3.7348]
[1725976165856,3.7339,133.9,133.82,14.35]
[1725976166058,3.7343,133.89,133.85,3.7351]
[1725976166258,3.7343,133.89,133.82,14.35]
[1725976166654,3.7346,133.88,133.82,14.35]
[1725976167247,3.7346,133.88,133.85,3.7353]
[1725976167647,3.7347,133.87,133.82,14.35]
[1725976167960,3.7347,133.87,133.84,3.7354]
[1725976168165,3.7347,133.87,133.82,14.35]
[1725976168354,3.7346,133.88,133.85,3.7353]
[1725976168655,7.473,133.91,133.82,14.35]
[1725976168854,3.7347,133.88,133.85,3.7353]
[1725976169757,7.473,133.91,133.82,14.35]
[1725976169955,21.823,133.89,133.79,14.35]
[1725976170358,7.473,133.84,133.79,14.35]
[1725976170857,7.473,133.84,133.82,3.736]
[1725976171458,7.473,133.85,133.83,3.7358]
[1725976172160,7.473,133.85,133.82,3.7361]
[1725976172664,7.473,133.85,133.81,3.7363]
[1725976173163,7.473,133.85,133.79,14.35]
[1725976173661,7.473,133.87,133.79,18.03020307]
[1725976173854,7.473,133.87,133.84,3.7354]
[1725976174056,11.2078,133.87,133.79,18.03020307]
[1725976174264,21.823,133.87,133.68,225.0]
[1725976174457,7.473,133.85,133.76,14.35]
[1725976174655,3.7363,133.82,133.76,14.35]
[1725976175054,3.7363,133.82,133.78,3.7371]
[1725976175450,4.3348,133.86,133.76,14.35]
[1725976175451,11.209,133.83,133.76,14.35]
[1725976175656,7.473,133.83,133.79,3.7369]
[1725976176057,7.473,133.83,133.76,14.35]
[1725976176254,11.209,133.83,133.76,14.35]
[1725976176457,7.473,133.83,133.77,14.35]
[1725976176659,7.473,133.85,133.82,3.7359]
[1725976177259,7.473,133.83,133.8,18.0866]
[1725976177672,7.473,133.83,133.8,14.35]
[1725976177859,16.5434,133.88,133.81,18.08467404]
[1725976177860,2.1934,133.88,133.81,18.08467404]
[1725976178165,11.8608,133.91,133.81,14.35]
[1725976178566,11.8608,133.91,133.81,18.16205143]
[1725976178762,26.2108,133.91,133.81,14.35]
[1725976179069,3.7352,133.86,133.79,14.35]
[1725976179366,3.7352,133.86,133.79,18.16392045]
[1725976179564,3.7348,133.87,133.79,18.16392045]
[1725976180060,26.2108,133.91,133.83,3.7356]
[1725976180263,7.473,133.86,133.77,14.35]
[1725976180467,7.473,133.84,133.77,14.35]
[1725976180667,7.473,133.83,133.8,3.7366]
[1725976181162,7.473,133.83,133.77,14.35]
[1725976181562,7.473,133.83,133.79,14.35]
[1725976181867,2.2618,133.86,133.79,14.35]
[1725976181868,7.473,133.84,133.83,3.7358]
[1725976182163,7.473,133.87,133.81,14.35]
[1725976182355,7.473,133.87,133.84,3.7354]
[1725976182761,7.473,133.87,133.82,3.71907004]
[1725976182959,7.473,133.87,133.85,3.7351]
[1725976183558,11.2078,133.87,133.83,3.7356]
[1725976183866,7.473,133.87,133.82,3.71907004]
[1725976184061,7.473,133.87,133.85,3.7352]
[1725976184262,7.473,133.87,133.82,3.71907004]
[1725976184661,11.2078,133.87,133.84,3.7354]
[1725976184858,7.473,133.86,133.84,3.7354]
[1725976185065,7.473,133.86,133.82,3.71907004]
[1725976185456,7.473,133.86,133.85,3.7353]
[1725976185969,7.473,133.88,133.85,3.7353]
[1725976186669,7.473,133.88,133.86,3.7349]
[1725976186867,7.473,133.92,133.83,22.95]
[1725976187165,7.473,133.92,133.89,3.734]
[1725976188065,7.473,133.92,133.9,3.7339]
[1725976189372,7.473,133.92,133.89,3.734]
[1725976189760,7.473,133.92,133.9,3.7338]
[1725976189964,7.473,133.92,133.88,22.95]
[1725976190165,7.473,133.95,133.91,3.7334]
[1725976190871,11.2057,133.95,133.91,3.7334]
[1725976191173,7.473,133.95,133.92,3.7331]
[1725976191775,7.473,133.95,133.93,3.7328]
[1725976191967,7.473,133.95,133.9,22.95]
[1725976192168,11.2051,133.97,133.9,22.95]
[1725976192363,11.2051,133.97,133.92,3.7333]
[1725976192364,7.473,133.97,133.92,3.7333]
[1725976192767,11.2051,133.97,133.89,3.73776615]
[1725976192972,7.473,133.97,133.92,3.7333]
[1725976193267,7.473,133.95,133.92,3.7333]
[1725976193672,7.473,133.95,133.93,3.733]
[1725976193874,7.473,133.95,133.89,3.73776615]
[1725976194068,7.473,133.95,133.91,3.7334]
[1725976194270,7.473,133.95,133.88,22.95]
[1725976194472,11.205,133.97,133.9,22.95]
[1725976194671,11.205,133.97,133.93,3.733]
[1725976195071,7.473,133.97,133.9,26.65714765]
[1725976195265,7.473,133.97,133.94,3.7326]
[1725976195876,7.473,133.97,133.93,3.7329]
[1725976196382,11.2051,133.97,133.93,3.7329]
[1725976197074,11.2051,133.97,133.9,26.65714765]
[1725976197075,7.473,133.97,133.94,3.7327]
[1725976197476,11.2049,133.97,133.93,3.733]
[1725976197668,7.473,133.97,133.9,3.70714765]
[1725976198078,7.473,133.95,133.88,22.95]
[1725976198279,7.473,133.95,133.9,22.95]
[1725976198474,7.473,133.95,133.9,26.66013518]
[1725976198678,7.473,133.95,133.93,3.733]
[1725976198879,7.473,133.95,133.9,26.66013518]
[1725976199078,7.473,133.97,133.9,26.66013518]
[1725976199276,11.205,133.97,133.93,3.7329]
[1725976199475,11.205,133.97,133.9,26.66013518]
[1725976199672,7.473,133.97,133.9,26.66013518]
[1725976199872,7.473,133.97,133.92,22.95]
[1725976200776,7.473,133.99,133.92,22.95]
[1725976201180,7.473,133.99,133.91,0.3221]
[1725976201369,3.7328,133.94,133.88,22.95]
[1725976201980,3.7325,133.95,133.91,3.7336]
[1725976202180,3.7325,133.95,133.88,22.95]
[1725976202581,3.7325,133.95,133.91,3.7334]
[1725976202980,3.7325,133.95,133.88,22.95]
[1725976203385,3.7323,133.96,133.89,3.7181594]
[1725976203572,30.423,133.99,133.94,3.7326]
[1725976203778,7.473,133.99,133.94,3.7326]
[1725976203982,7.473,133.97,133.9,26.59719503]
[1725976204184,7.473,133.97,133.96,3.7322]
[1725976204882,7.473,134.01,133.96,3.7322]
[1725976205079,7.473,134.01,133.91,0.3253]
[1725976205080,11.2049,133.98,133.92,22.95]
[1725976205281,7.473,133.98,133.92,22.95]
[1725976205780,7.473,133.98,133.88,22.95]
[1725976206084,9.6915,133.97,133.91,3.7335]
[1725976206285,9.6915,133.97,133.88,22.95]
[1725976206475,7.473,133.95,133.86,22.95]
[1725976206675,7.473,133.92,133.86,22.95]
[1725976206880,7.473,133.92,133.88,22.95]
[1725976207485,7.473,133.92,133.85,22.95]
[1725976207784,7.473,133.95,133.85,22.95]
[1725976207984,7.473,133.92,133.89,3.7342]
[1725976208184,7.473,133.92,133.85,22.95]
[1725976208381,7.473,133.92,133.91,3.7336]
[1725976208980,2.1034,133.96,133.9,22.95]
[1725976209175,2.2185,133.97,133.92,22.95]
[1725976210187,5.9504,133.97,133.93,3.733]
[1725976210782,2.2185,133.97,133.92,3.7333]
[1725976211174,2.2185,133.97,133.9,22.95]
[1725976211386,3.7327,133.95,133.91,3.7333]
[1725976211780,3.7328,133.94,133.9,3.7339]
[1725976211982,2.2185,133.97,133.88,22.95]
[1725976212379,22.95,133.96,133.85,22.95]
[1725976212885,22.95,133.94,133.83,23.2753]
[1725976213085,4.4198,133.93,133.83,23.2753]
[1725976213291,4.4198,133.93,133.83,22.95]
[1725976213587,22.95,133.92,133.83,3.7357]
[1725976213781,22.95,133.92,133.81,3.71544897]
[1725976213986,2.0992,133.91,133.81,3.71544897]
[1725976214184,22.95,133.87,133.75,0.3219]
[1725976214382,4.4198,133.86,133.75,23.2719]
[1725976214589,4.4198,133.86,133.75,26.79839651]
[1725976214882,3.7359,133.83,133.77,3.7373]
[1725976215283,3.7356,133.84,133.77,3.7373]
[1725976215786,3.7356,133.84,133.78,3.7372]
[1725976215987,4.4198,133.86,133.75,22.95]
[1725976216388,4.4198,133.86,133.77,22.95]
[1725976216693,4.4198,133.86,133.8,3.7366]
[1725976216986,4.4198,133.86,133.77,22.95]
[1725976217784,4.4198,133.86,133.81,3.7363]
[1725976217984,4.4198,133.86,133.77,22.95]
[1725976219295,4.4198,133.86,133.79,22.95]
[1725976219992,7.473,133.85,133.79,22.95]
[1725976221092,7.473,133.85,133.77,22.95]
[1725976221591,7.473,133.85,133.79,22.95]
[1725976222391,7.473,133.85,133.83,3.7356]
[1725976222698,7.473,133.85,133.79,22.95]
[1725976222893,7.473,133.85,133.84,3.7356]
[1725976223291,7.473,133.87,133.84,3.7356]
[1725976223488,7.473,133.87,133.82,22.95]
[1725976224288,2.1969,133.89,133.82,22.95]
[1725976224289,7.473,133.88,133.82,22.95]
[1725976224599,11.2076,133.88,133.82,22.95]
[1725976224793,7.473,133.88,133.82,22.95]
[1725976224997,7.473,133.88,133.84,3.7354]
[1725976225398,7.473,133.89,133.82,22.95]
[1725976225593,7.473,133.89,133.86,3.7348]
[1725976225798,7.473,133.89,133.82,22.95]
[1725976226500,7.473,133.89,133.87,3.7347]
[1725976227103,7.473,133.9,133.84,22.95]
[1725976227402,7.473,133.9,133.88,3.7342]
[1725976227593,7.473,133.92,133.86,22.95]
[1725976228196,7.473,133.92,133.88,3.7342]
[1725976228597,7.473,133.92,133.86,22.95]
[1725976228798,7.473,133.91,133.84,22.95]
[1725976229297,3.7341,133.9,133.86,3.7348]
[1725976229492,7.473,133.91,133.86,3.7348]
[1725976229801,7.473,133.92,133.86,3.7348]
[1725976230004,7.473,133.92,133.85,3.7352]
[1725976230298,7.473,133.92,133.82,22.95]
[1725976230508,30.423,133.92,133.82,3.736]
[1725976230696,30.423,133.92,133.8,22.95]
[1725976231101,7.473,133.85,133.8,22.95]
[1725976231595,7.473,133.85,133.82,3.736]
[1725976231998,7.473,133.91,133.8,22.95]
[1725976232202,7.473,133.89,133.81,3.7362]
[1725976232505,7.473,133.87,133.81,3.7362]
[1725976232701,11.2085,133.85,133.81,3.7362]
[1725976232907,7.473,133.85,133.8,3.7366]
[1725976233104,7.473,133.85,133.77,22.95]
[1725976233507,7.473,133.85,133.82,3.7359]
[1725976233703,11.2083,133.85,133.82,3.7359]
[1725976234011,7.473,133.85,133.77,22.95]
[1725976234202,3.736,133.83,133.77,22.95]
[1725976234501,3.736,133.83,133.8,3.7366]
[1725976235104,3.736,133.83,133.76,0.3227]
[1725976235105,7.473,133.86,133.75,22.95]
[1725976235604,3.736,133.83,133.77,22.95]
[1725976236407,2.2671,133.87,133.71,0.3221]
[1725976236408,30.423,133.85,133.75,22.95]
[1725976236600,2.101,133.84,133.75,22.95]
[1725976237406,3.7362,133.82,133.79,3.7369]
[1725976237601,2.101,133.84,133.75,22.95]
[1725976238899,3.7363,133.82,133.78,3.7371]
[1725976239295,3.7365,133.81,133.77,3.7374]
[1725976239498,2.101,133.84,133.75,22.95]
[1725976239903,3.7362,133.82,133.78,3.7371]
[1725976241417,3.7364,133.81,133.75,22.95]
[1725976241615,2.101,133.84,133.75,22.95]
[1725976242016,2.101,133.84,133.71,4.09901387]
[1725976242017,2.101,133.84,133.73,22.95]
[1725976242609,2.101,133.84,133.76,3.7377]
[1725976242812,2.101,133.84,133.73,22.95]
[1725976242813,22.95,133.83,133.73,22.95]
[1725976243113,3.7379,133.76,133.72,3.7388]
[1725976243417,22.95,133.8,133.68,22.95]
[1725976243617,3.7375,133.77,133.73,3.7385]
[1725976244305,2.2265,133.78,133.7,22.95]
[1725976244912,5.9638,133.78,133.74,3.7382]
[1725976245318,2.2265,133.78,133.7,22.95]
[1725976245915,2.2265,133.78,133.75,3.738]
[1725976246417,2.2265,133.78,133.7,22.95]
[1725976247610,5.9638,133.78,133.74,3.7381]
[1725976247809,2.2265,133.78,133.7,22.95]
[1725976248219,3.7376,133.77,133.73,3.7384]
[1725976248518,3.7376,133.77,133.7,22.95]
[1725976249318,3.7376,133.77,133.73,3.7384]
[1725976249517,3.738,133.76,133.73,3.7384]
[1725976249908,3.738,133.76,133.7,22.95]
[1725976250217,2.2265,133.78,133.7,14.37]
[1725976250421,2.2265,133.78,133.72,3.7387]
[1725976250721,3.738,133.76,133.72,3.7387]
[1725976251220,3.738,133.76,133.73,3.7386]
[1725976251612,2.2265,133.78,133.72,14.37]
[1725976251814,2.2265,133.78,133.74,3.7382]
[1725976252014,2.2265,133.78,133.72,14.37]
[1725976253521,9.7265,133.79,133.74,14.37]
[1725976253921,13.4635,133.79,133.74,14.37]
[1725976254322,9.7265,133.79,133.76,3.7376]
[1725976254819,7.473,133.81,133.78,3.737]
[1725976255022,2.1845,133.86,133.78,14.37]
[1725976255219,2.1845,133.86,133.7,0.3208]
[1725976255418,2.1845,133.86,133.77,14.37]
[1725976256616,2.1845,133.86,133.76,3.68447184]
[1725976256822,2.1845,133.86,133.79,14.37]
[1725976258922,3.7353,133.85,133.81,3.7362]
[1725976259126,2.1845,133.86,133.79,14.37]
[1725976259323,5.9197,133.86,133.79,14.37]
[1725976259519,2.1845,133.86,133.81,3.7364]
[1725976259719,2.1845,133.86,133.79,14.37]
[1725976259917,2.1845,133.86,133.81,14.37]
[1725976260125,7.473,133.88,133.81,14.37]
[1725976260423,8.1569,133.89,133.81,14.37]
[1725976261018,8.1569,133.89,133.85,3.7352]
[1725976261225,8.1569,133.89,133.81,14.37]
[1725976261621,3.7346,133.88,133.84,3.7354]
[1725976261822,2.1503,133.89,133.81,14.37]
[1725976262127,5.8846,133.89,133.85,3.7352]
[1725976262322,2.1503,133.89,133.81,14.37]
[1725976263127,2.1762,133.9,133.89,3.7342]
[1725976263320,2.1764,133.94,133.89,3.7342]
[1725976263321,2.2225,133.93,133.89,14.37]
[1725976263525,2.2815,133.96,133.89,14.37]
[1725976265529,2.2815,133.96,133.91,14.37]
[1725976266427,9.6955,133.98,133.95,3.7325]
[1725976266627,9.6955,133.98,133.9,22.95]
[1725976267521,9.6955,133.98,133.92,3.7332]
[1725976268030,3.7325,133.96,133.91,3.7335]
[1725976268229,9.6955,133.98,133.88,22.95]
[1725976268825,3.7323,133.96,133.92,3.7333]
[1725976269529,9.6955,133.98,133.88,22.95]
[1725976269727,22.95,133.97,133.88,22.95]
[1725976270126,3.7327,133.95,133.91,3.7334]
[1725976270624,22.95,133.97,133.91,3.7334]
[1725976270829,3.7325,133.95,133.91,3.7334]
[1725976271626,3.7323,133.96,133.92,3.7332]
[1725976271819,3.7323,133.96,133.88,22.95]
[1725976272024,9.6955,133.98,133.88,22.95]
[1725976272224,3.732,133.97,133.93,3.7328]
[1725976272427,9.6955,133.98,133.9,22.95]
[1725976272623,2.3019,134.01,133.92,22.95]
[1725976272624,7.473,134.0,133.92,22.95]
[1725976272828,2.3019,134.01,133.94,22.95]
[1725976273029,2.3019,134.01,133.92,22.95]
[1725976273433,2.3019,134.01,133.9,22.95]
[1725976273835,2.3019,134.01,133.92,22.95]
[1725976274532,2.3019,134.01,133.9,22.95]
[1725976275131,3.7318,133.98,133.9,22.95]
[1725976275336,9.7749,134.01,133.92,22.95]
[1725976275735,9.7749,134.01,133.94,22.95]
[1725976276238,9.7749,134.01,133.96,3.732]
[1725976276441,9.7749,134.01,133.93,3.74094466]
[1725976276832,9.7749,134.01,133.92,22.95]
[1725976277828,9.7749,134.01,133.97,3.7318]
[1725976277829,13.5059,134.01,133.97,3.7318]
[1725976278030,9.7749,134.01,133.94,22.95]
[1725976278337,2.3019,134.01,133.94,26.5998478]
[1725976279641,6.0329,134.01,133.97,3.7317]
[1725976279837,6.0329,134.01,133.94,26.5998478]
[1725976280140,6.0329,134.01,133.97,3.7317]
[1725976280339,6.0329,134.01,133.94,26.5998478]
[1725976280942,130.68732548,134.02,133.94,26.5998478]
[1725976281143,126.95662548,134.02,133.94,26.5998478]
[1725976281534,130.68732548,134.02,133.94,26.5998478]
[1725976281941,13.313,134.02,133.94,26.5998478]
[1725976282539,9.5823,134.02,133.94,26.5998478]
[1725976283040,13.313,134.02,133.99,3.7313]
[1725976283237,9.5823,134.02,133.99,3.7313]
[1725976283545,7.473,134.03,133.96,22.95]
[1725976283744,7.473,134.03,133.98,22.95]
[1725976283944,7.473,134.03,134.02,3.7305]
[1725976284237,7.473,134.03,133.98,22.95]
[1725976284437,7.473,134.03,133.98,26.64401313]
[1725976284632,7.473,134.04,133.98,26.64401313]
[1725976285043,11.203,134.04,134.01,3.7307]
[1725976285837,7.473,134.04,134.01,3.7307]
[1725976286146,7.473,134.04,134.02,3.7305]
[1725976286940,7.473,134.04,134.01,3.7307]
[1725976287141,7.473,134.04,133.98,26.64401313]
[1725976287450,7.473,134.04,134.01,3.7306]
[1725976288146,7.473,134.04,134.02,3.7305]
[1725976288345,7.473,134.04,133.98,18.02401313]
[1725976289239,7.473,134.04,134.01,3.7307]
[1725976289443,7.473,134.05,133.98,18.02401313]
[1725976289841,7.473,134.05,134.0,14.33]
[1725976290040,9.7777,134.08,134.0,14.33]
[1725976290440,3.7296,134.06,134.02,3.7304]
[1725976290641,9.7777,134.08,134.02,3.7304]
[1725976290840,3.7297,134.05,134.02,3.7304]
[1725976291239,11.2027,134.05,134.02,3.7304]
[1725976291652,7.473,134.05,134.03,3.7302]
[1725976292548,11.2028,134.05,134.0,14.33]
[1725976292744,7.473,134.05,133.96,14.33]
[1725976293140,11.203,134.05,133.98,14.33]
[1725976293540,7.473,134.05,133.98,14.33]
[1725976294245,7.473,134.05,134.03,3.7302]
[1725976294644,7.473,134.05,133.98,14.33]
[1725976294645,11.2029,134.05,133.98,14.33]
[1725976295242,7.473,134.05,134.03,3.7302]
[1725976295851,7.473,134.07,134.01,3.67498331]
[1725976296346,11.2024,134.07,134.01,3.67498331]
[1725976296546,7.473,134.07,134.01,3.67498331]
[1725976297146,7.473,134.05,134.01,3.67498331]
[1725976297552,7.473,134.05,134.02,3.7303]
[1725976297747,7.473,134.05,134.01,3.67498331]
[1725976298148,3.7296,134.06,134.03,3.7301]
[1725976298348,7.473,134.05,134.01,3.67498331]
[1725976298750,11.2029,134.05,134.02,3.7304]
[1725976299152,7.473,134.05,134.01,3.7307]
[1725976299358,11.2029,134.05,134.0,14.33]
[1725976299547,11.2029,134.05,134.0,18.08699421]
[1725976299753,11.2029,134.05,134.02,3.7304]
[1725976299949,7.473,134.05,134.0,18.08699421]
[1725976300346,7.473,134.07,134.04,3.73]
[1725976301249,7.473,134.05,134.03,3.72042797]
[1725976301453,7.473,134.05,134.02,14.33]
[1725976301648,7.473,134.05,134.02,18.06162172]
[1725976302256,11.2029,134.05,134.02,18.0604]
[1725976302458,11.2029,134.05,134.0,14.33]
[1725976302662,7.473,134.05,133.98,14.33]
[1725976302960,3.7302,134.04,133.98,14.33]
[1725976303647,3.7302,134.04,134.01,3.7306]
[1725976303852,3.7304,134.03,133.98,14.33]
[1725976304248,3.7304,134.03,134.0,3.7308]
[1725976304452,3.73,134.04,134.0,3.68236435]
[1725976304658,9.6338,134.06,133.98,14.33]
[1725976304851,7.473,134.07,134.0,14.33]
[1725976305047,7.473,134.05,134.0,18.12393984]
[1725976306365,11.2023,134.07,134.02,14.33]
[1725976306958,7.473,134.05,134.02,14.33]
[1725976307362,7.473,134.05,134.03,3.73]
[1725976308159,7.473,134.05,134.04,3.73]
[1725976308665,11.2023,134.07,134.04,3.73]
[1725976308863,7.473,134.07,134.04,14.33]
[1725976309055,11.7831,134.12,134.06,14.33]
[1725976309257,7.473,134.12,134.08,14.33]
[1725976309562,7.473,134.12,134.09,3.7285]
[1725976309967,7.473,134.16,134.1,14.33]
[1725976310466,7.473,134.16,134.06,18.06871109]
[1725976310467,7.473,134.16,134.13,3.7274]
[1725976310868,7.473,134.16,134.12,14.33]
[1725976311067,7.473,134.16,134.12,18.0578]
[1725976311559,7.473,134.16,134.13,3.7275]
[1725976311767,7.473,134.16,134.1,14.33]
[1725976312063,11.1997,134.16,134.1,14.33]
[1725976312260,11.1997,134.16,134.12,3.7276]
[1725976312465,7.473,134.16,134.1,14.33]
[1725976313966,11.1997,134.16,134.12,3.7276]
[1725976314868,11.1997,134.16,134.13,3.7274]